Cogmind - Beta 16 @@@ ROGUE MODE // 2025.12.30 @ 18:42:09 Player: telemetry Result: Destroyed by G-34 Mercenary with Small Laser Performance ------------- Evolutions (0) 0 Regions Visited (4) 800 Robots Destroyed (44) 220 Value Destroyed (751) 751 Prototype IDs (1) 20 Alien Tech Used (0) 0 Bonus (0) 0 TOTAL SCORE: 1791 Bonus ------- None Cogmind --------- Core Integrity 0/250 Matter 245/300 Energy 100/100 System Corruption 3% Temperature Hot (291) Movement Core (350) Ox6 Location -9/Mines Parts ------- > --- POWER (1) -------- (None) > --- PROPULSION (2) --- (None) > --- UTILITY (2) ------ Large Storage Unit Signal Interpreter > --- WEAPON (2) ------- Light Assault Rifle > --- INVENTORY (15) --- Light Ion Engine Advanced Treads Wheel Small Storage Unit Structural Scanner Improved Sensor Array Experimental Sensor Array Signal Interpreter Improved Terrain Scanner Hacking Suite Tractor Beam Small Laser Rocket Launcher Welding Torch Mace Peak State ------------ > --- POWER ------------ Ion Engine > --- PROPULSION ------- Light Treads Improved Flight Unit > --- UTILITY ---------- Large Storage Unit Signal Interpreter > --- WEAPON ----------- Improved Light Cannon Improved Light Cannon > --- INVENTORY -------- Light Ion Engine Improved Heat Sink Small Storage Unit High-capacity Battery Structural Scanner Signal Interpreter Improved Terrain Scanner Core Shielding Small Laser Improved Light Cannon Improved Light Cannon Welding Torch Mace [Rating: 13] Favorites ----------- Power Light Ion Engine Engine Light Ion Engine Propulsion Light Treads Treads Light Treads Leg Aluminum Leg Flight Unit Improved Flight Unit Utility Large Storage Unit Device Improved Terrain Scanner Storage Large Storage Unit Processor Signal Interpreter Weapon Improved Light Cannon Energy Gun Small Laser Energy Cannon Ion Cannon Ballistic Gun Assault Rifle Ballistic Cannon Improved Light Cannon Build | -11 -10 -10 -10 -9 ------- Run | Yrd Mat Min Exi Min Slots Evolved . | . . . . . Power . | . . . . . Propulsion . | . . . . . Utility . | . . . . . Weapon . | . . . . . Parts Attached 24 | 7 8 9 . . Power 6 | 1 2 3 . . Engine 6 | 1 2 3 . . Core . | . . . . . Reactor . | . . . . . Propulsion 5 | 2 1 2 . . Treads 2 | 2 . . . . Leg 2 | . . 2 . . Wheel . | . . . . . Hover . | . . . . . Flight 1 | . 1 . . . Utility 4 | 2 2 . . . Device 1 | 1 . . . . Storage 2 | 1 1 . . . Processor 1 | . 1 . . . Hackware . | . . . . . Protection . | . . . . . Artifact . | . . . . . Weapon 9 | 2 3 4 . . Energy Gun 1 | 1 . . . . Energy Cannon 1 | . . 1 . . Ballistic Gun 3 | 1 1 1 . . Ballistic Cannon 4 | . 2 2 . . Launcher . | . . . . . Special Weapon . | . . . . . Impact Weapon . | . . . . . Slashing Weapon . | . . . . . Piercing Weapon . | . . . . . Special Melee Weapon . | . . . . . Unidentified Prototypes 1 | . 1 . . . Parts Lost 9 | . . 6 . 3 Power 3 | . . 2 . 1 Propulsion 3 | . . 2 . 1 Utility . | . . . . . Weapon 3 | . . 2 . 1 Highest Loss Streak 5 | . . 5 . 3 To Critical Strikes . | . . . . . Average Backups 11 | . 9 14 15 15 Power . | . . . 1 1 Propulsion . | . . 1 2 2 Utility 6 | . 5 8 8 8 Weapon 2 | . 1 3 3 3 Tool/Special . | . . . . . Unused Backups 20 | . . 6 . 14 Power 1 | . . . . 1 Propulsion 2 | . . . . 2 Utility 13 | . . 6 . 7 Weapon 3 | . . . . 3 Tool/Special 1 | . . . . 1 Average Slot Usage (%) 97 | . 99 95 100 74 Engine 13 | . 14 11 14 10 Treads 17 | . 27 9 . . Leg 9 | . . 17 28 10 Device 1 | . 2 . . . Storage 14 | . 14 14 14 14 Processor 12 | . 11 14 14 14 Energy Gun 1 | . 2 . . . Energy Cannon 3 | . . 5 14 10 Ballistic Gun 11 | . 15 5 14 14 Ballistic Cannon 11 | . 10 16 . . Peak Build Rating 13 | 9 13 12 12 12 Average Rating 9 | 6 9 10 12 9 On Entrance 8 | . 9 11 12 12 Avg Prop Armor Cover (%) . | . . . . . Naked Turns . | . . . . . Heaviest Build 33 | 14 33 31 30 . Greatest Support 40 | 40 40 40 20 . Greatest Overweight (x) 10 | 1 10 9 1 . Average Overweight (x) . | . . . 1 . Largest Inventory Capacity 15 | 8 15 15 15 15 Average Capacity 14 | 7 13 15 15 15 Most Carried 15 | 2 15 15 15 15 Average Carried 11 | 1 9 14 15 15 Final Capacity 15 | 8 15 15 15 15 Final Carried 15 | 2 15 15 15 15 Class Distribution -------------------- 74% | Mutant 25% | Scavenger-Mutant Dominant Class ---------------- Mutant | -10/Materials Mutant | -10/Mines Scavenger-Mutant | -10/Exiles Mutant | -9/Mines Resources | -11 -10 -10 -10 -9 ----------- Run | Yrd Mat Min Exi Min Matter Collected 1321 | 327 523 471 . . Remotely . | . . . . . Salvage Created 1022 | 187 521 278 . 36 Parts 81 | 15 37 26 . 3 Haulers Intercepted 2 | . 2 . . . Recyclers Shooed . | . . . . . Parts Field Recycled . | . . . . . Retrieved Matter . | . . . . . Parts Self-Destructed . | . . . . . Prevented . | . . . . . Parts Restored . | . . . . . Kills | -11 -10 -10 -10 -9 ------- Run | Yrd Mat Min Exi Min Combat Hostiles Destroyed 27 | . 12 14 . 1 Guns 7 | . 6 . . 1 Cannons 20 | . 6 14 . . Classes Destroyed 8 | 3 5 . . . Worker 2 | 1 1 . . . Builder 3 | . 2 1 . . Tunneler 5 | 4 . 1 . . Hauler 2 | . 2 . . . Recycler 4 | 1 1 2 . . Operator 1 | . 1 . . . Swarmer 13 | . 5 8 . . Grunt 14 | . 7 6 . 1 Best Kill Streak 7 | 4 3 7 . 1 Combat Bots Only 7 | . 3 7 . 1 Max Kills in Single Turn 1 | 1 1 1 . 1 Gunslinging . | . . . . . Exploded . | . . . . . Melee . | . . . . . Uniques/NPCs Destroyed . | . . . . . Combat | -11 -10 -10 -10 -9 -------- Run | Yrd Mat Min Exi Min Hostile Shots Fired 192 | . 67 97 . 28 Missed 51 | . 20 25 . 6 Hits 141 | . 47 72 . 22 Projectile 141 | . 47 72 . 22 Critical Strikes 4 | . 1 2 . 1 Damage Taken 1774 | . 773 728 . 273 Core 259 | . 75 134 . 50 Absorbed by Shields . | . . . . . Regen/Repaired (Parts) 91 | . 91 . . . Core Remaining (%) 100 | 100 . . . . Volleys Fired 137 | 19 62 44 . 12 Largest 2 | 2 2 2 . 2 Hottest 80 | 60 66 66 . 80 Shots Fired 269 | 36 125 87 . 21 Gun 118 | 36 70 . . 12 Cannon 151 | . 55 87 . 9 Launcher . | . . . . . Special . | . . . . . Kinetic 230 | 19 113 86 . 12 Thermal 39 | 17 12 1 . 9 Explosive . | . . . . . Electromagnetic . | . . . . . Robot Hit Streak 13 | 9 10 13 . 11 Robot Miss Streak 4 | 2 4 3 . 3 Penetration Max . | . . . . . Secondary Targets 1 | . 1 . . . Max Gunslinging Chain 1 | . 1 . . . Shots Hit Robots 158 | 23 67 54 . 14 Core Hits 53 | 6 26 16 . 5 Critical Kills . | . . . . . Critical Parts Destroyed 1 | . 1 . . . Critical Strikes 8 | . 2 6 . . Destroy 1 | . 1 . . . Blast 7 | . 1 6 . . Melee Attacks . | . . . . . Impact . | . . . . . Slashing . | . . . . . Piercing . | . . . . . Sneak Attacks . | . . . . . Combat Hostiles . | . . . . . Follow-up Attacks . | . . . . . Damage Inflicted 2773 | 274 1089 1182 . 228 Guns 847 | 274 507 . . 66 Cannons 1896 | . 552 1182 . 162 Explosions . | . . . . . Melee . | . . . . . Ramming 30 | . 30 . . . Kinetic 2396 | 177 971 1182 . 66 Thermal 347 | 97 88 . . 162 Explosive . | . . . . . Electromagnetic . | . . . . . Impact . | . . . . . Slashing . | . . . . . Piercing . | . . . . . Highest Corruption 3 | . 3 3 3 3 Average Corruption 2 | . 2 3 3 3 Corruption Purged . | . . . . . Corruption Blocked . | . . . . . Effects 48 | . 16 24 7 1 Message Errors 18 | . 5 11 2 . Matter Fused 9 | . 3 3 3 . Heat Flow Errors 3 | . . 3 . . Energy Discharges 2 | . 2 . . . Parts Rejected 2 | . 1 . . 1 Data Loss (minor) 8 | . 3 3 2 . Data Loss (major) 2 | . 1 1 . . Misfires 2 | . 1 1 . . Alerts 1 | . . 1 . . Weapon Failures 1 | . . 1 . . Overload Shots . | . . . . . Overflow Damage 45 | . 20 25 . . Projectiles 45 | . 20 25 . . Explosions . | . . . . . Melee . | . . . . . Knockbacks 21 | . 10 11 . . Impact 1 | . 1 . . . Kinetic 17 | . 8 9 . . Secondary 3 | . 1 2 . . Self-Inflicted Damage . | . . . . . Shots . | . . . . . Rammed 2 | . 2 . . . Targets Rammed 3 | . 3 . . . Kicked . | . . . . . Crushed 1 | . 1 . . . Highest Temperature 338 | . 92 281 12 338 Average Temperature 56 | . 23 45 12 218 Received Heat Transfer 681 | . 231 279 . 171 Siege Activations . | . . . . . Martial Activations . | . . . . . Shielding Activations . | . . . . . Robots Disrupted . | . . . . . Combat Hostiles . | . . . . . Robots Corrupted . | . . . . . Combat Hostiles . | . . . . . Parts Fried . | . . . . . Impact Corruptions 2 | . 1 1 . . Robots Melted . | . . . . . Combat Hostiles . | . . . . . Parts Melted 1 | . . . . 1 Heat Transferred 684 | 225 200 . . 259 Parts Sabotaged . | . . . . . Parts Stolen . | . . . . . Parts Stripped . | . . . . . Power Chain Reactions . | . . . . . Alert | -11 -10 -10 -10 -9 ------- Run | Yrd Mat Min Exi Min Maximum Alert Level 1 | . . 1 . . Low Security (%) 99 | 100 100 99 . 100 Level 1 . | . . . . . Level 2 . | . . . . . Level 3 . | . . . . . Level 4 . | . . . . . Level 5 . | . . . . . High Security . | . . . . . Max Security . | . . . . . Peak Influence 207 | 10 146 207 . 20 Initial 48 | . . 48 . . Average 37 | 2 27 54 . 7 Influence Increases 896 | 30 471 375 . 20 Destroy 0b10 Robot/C 540 | . 240 280 . 20 Destroy 0b10 Robot/NC 85 | 30 35 20 . . Destroy Leader 84 | . 44 40 . . Successful Hack 14 | . 14 . . . Disable Machine 15 | . 15 . . . Destroy Structure 8 | . 3 5 . . Partial Spotted 30 | . 30 . . . Lose Combat Pursuer 120 | . 90 30 . . Influence Decreases 896 | 30 346 500 . 20 Entered New Map 77 | . . 77 . . Time Decay 769 | 30 346 393 . . Lost Part 50 | . . 30 . 20 Squads Dispatched 4 | . 4 . . . Investigation 3 | . 3 . . . Extermination . | . . . . . Reinforcement 1 | . 1 . . . Assault . | . . . . . Garrison . | . . . . . Intercept . | . . . . . Searches Triggered . | . . . . . Construction Impeded . | . . . . . Haulers Reinforced . | . . . . . Active Scanning Responses . | . . . . . Cargo Convoy Interrupts . | . . . . . Stealth | -11 -10 -10 -10 -9 --------- Run | Yrd Mat Min Exi Min Distress Signals 1 | . 1 . . . Communications Jammed . | . . . . . Distress Signals . | . . . . . Times Spotted 50 | . 30 17 . 3 Peak Tracking Total 6 | . 5 6 . 3 Tactical Retreats 6 | . 5 1 . . Traps | -11 -10 -10 -10 -9 ------- Run | Yrd Mat Min Exi Min Traps Triggered 7 | . 7 . . . Indirectly . | . . . . . Trap Hack Attempts . | . . . . . Triggered . | . . . . . Disarmed . | . . . . . Reprogrammed . | . . . . . Reused . | . . . . . Traps Extracted . | . . . . . Installed . | . . . . . Triggered . | . . . . . Machines | -11 -10 -10 -10 -9 ---------- Run | Yrd Mat Min Exi Min Machines Disabled 1 | . 1 . . . Max in Single Turn 1 | . 1 . . . Machines Repaired . | . . . . . Machines Dismantled . | . . . . . Machines Sabotaged . | . . . . . Overloaded Fab Kills . | . . . . . Hacking | -11 -10 -10 -10 -9 --------- Run | Yrd Mat Min Exi Min Machines Accessed 9 | . 8 1 . . Terminals 6 | . 6 . . . Fabricators . | . . . . . Repair Stations 1 | . 1 . . . Recycling Units 1 | . 1 . . . Scanalyzers . | . . . . . Garrison Access . | . . . . . Total Hacks 26 | . 25 1 . . Successful 9 | . 8 1 . . Failed 16 | . 16 . . . Catastrophic 2 | . 2 . . . Database Lockouts 1 | . 1 . . . Manual 10 | . 10 . . . Terminals 21 | . 21 . . . Fabricators . | . . . . . Repair Stations 3 | . 3 . . . Recycling Units 1 | . 1 . . . Scanalyzers . | . . . . . Garrison Access . | . . . . . Terminal Hacks 5 | . 4 1 . . Robot Analysis 1 | . 1 . . . Open Door 1 | . . 1 . . Alert Level 1 | . 1 . . . Zone Layout 2 | . 2 . . . Fabricator Hacks . | . . . . . Repair Station Hacks 3 | . 3 . . . Scan Component 2 | . 2 . . . Repair 1 | . 1 . . . Recycling Unit Hacks 1 | . 1 . . . Report Inventory 1 | . 1 . . . Scanalyzer . | . . . . . Garrison Access Hacks . | . . . . . Unauthorized Hacks . | . . . . . Terminals . | . . . . . Fabricators . | . . . . . Repair Stations . | . . . . . Recycling Units . | . . . . . Scanalyzers . | . . . . . Garrison Access . | . . . . . Data Cores Recovered . | . . . . . Used . | . . . . . Hacking Detections 7 | . 7 . . . Full Trace Events 5 | . 5 . . . Feedback Events . | . . . . . Feedback Blocked . | . . . . . Robot Schematics Acquired . | . . . . . Robots Built . | . . . . . Authchips . | . . . . . Time . | . . . . . Total Robot Build Rating . | . . . . . Part Schematics Acquired . | . . . . . Parts Built . | . . . . . Authchips . | . . . . . Time . | . . . . . Total Part Build Rating . | . . . . . Part Studies Acquired . | . . . . . Parts Repaired 1 | . 1 . . . Time 26 | . 26 . . . Parts Recycled . | . . . . . Recycled Matter . | . . . . . Retrieved Matter . | . . . . . Retrieved Components . | . . . . . Parts Scanalyzed . | . . . . . Part Schematics Acquired . | . . . . . Parts Damaged . | . . . . . Bothacking | -11 -10 -10 -10 -9 ------------ Run | Yrd Mat Min Exi Min Used RIF Installer . | . . . . . Robots Hacked . | . . . . . Non-combat . | . . . . . Combat . | . . . . . Robot Hacks Applied . | . . . . . Relay Couplers Released . | . . . . . Fabnet Peak Effective % . | . . . . . Robots Rewired . | . . . . . Allies Hacked . | . . . . . Hacks Repelled . | . . . . . Allies | -11 -10 -10 -10 -9 -------- Run | Yrd Mat Min Exi Min Total Allies . | . . . . . Largest Group . | . . . . . Highest-Rated Group . | . . . . . Highest-Rated Ally . | . . . . . Total Orders . | . . . . . Ally Attacks . | . . . . . Total Damage . | . . . . . Kills . | . . . . . Allies Corrupted . | . . . . . Allies Melted . | . . . . . Intel | -11 -10 -10 -10 -9 ------- Run | Yrd Mat Min Exi Min Active Infowar (turns) 351 | 53 298 . . . Terrain 351 | 53 298 . . . Robot Analysis Total 1 | . 1 . . . Derelict Logs Recovered 2 | . . 2 . . Drone Launches . | . . . . . Drone Recoveries . | . . . . . Exploration | -11 -10 -10 -10 -9 ------------- Run | Yrd Mat Min Exi Min Turns Passed 3552 | 140 1739 1289 354 30 Spaces Moved 1631 | 47 788 609 187 . Core 7 | 2 1 4 . . Treads 1032 | 45 787 200 . . Legs 592 | . . 405 187 . Wheels . | . . . . . Hover . | . . . . . Flight . | . . . . . Fastest Speed 50 | 50 160 160 190 . Average Speed 172 | 156 160 182 190 . Slowest Speed 550 | 160 550 500 190 . Overloaded Moves . | . . . . . Propulsion Burnouts . | . . . . . Robots Hopped . | . . . . . Potential Cave-ins . | . . . . . Cave-ins Triggered . | . . . . . Exploration Rate (%) 49 | 4 98 82 60 4 Regions Visited 4 Branch Regions 3 Pre-discovered Areas . | . . . . . Known Exits Taken 3 | . 1 1 1 . Unknown Exits Taken 1 | 1 . . . . Scrap Searched . | . . . . . Spaces Dug . | . . . . . Terrain Destroyed 7 | . 1 6 . . Melee . | . . . . . Projectile 7 | . 1 6 . . AOE . | . . . . . Terrain Rammed . | . . . . . Walls Destroyed . | . . . . . Machines Disabled . | . . . . . Actions | -11 -10 -10 -10 -9 --------- Run | Yrd Mat Min Exi Min Total 2099 | 74 1125 702 186 12 Wait 259 | . 238 21 . . Move 1627 | 46 787 608 186 . Hop . | . . . . . Pick Up 24 | 2 12 10 . . Fast Attach 23 | 7 11 5 . . Attach 4 | . 1 3 . . Detach . | . . . . . Swap 9 | . 8 1 . . Drop 13 | . 3 10 . . Fire 137 | 19 62 44 . 12 Melee . | . . . . . Ram . | . . . . . Kick . | . . . . . Crush 3 | . 3 . . . Escape Stasis . | . . . . . Rewire . | . . . . . Trap . | . . . . . Miscellaneous . | . . . . . Route ------- -11/Scrapyard -10/Materials (discovered 4 exits: *Mat x3 / *Min) -10/Mines -10/Exiles -9/Mines History --------- Turn | Location | Event 16 | -11/Scrapyard | Discovered new exit (range 15) 141 | -11/Scrapyard | Entered Materials 313 | -10/Materials | Build established: Mutant 459 | -10/Materials | Discovered new exit (range 15) 495 | -10/Materials | Identified exit to Mines 634 | -10/Materials | Discovered new exit (range 14) 907 | -10/Materials | Identified exit to Materials 1187 | -10/Materials | Central database locked down 1207 | -10/Materials | Discovered exit to Materials (range 9) 1437 | -10/Materials | Discovered exit to Materials (range 16) 1627 | -10/Materials | Repaired Lgt. Treads 1880 | -10/Materials | Entered Mines 1899 | -10/Mines | Received a Rocket Launcher from a helpful Derelict 2105 | -10/Mines | Learned location of 1 exit from Materials 2257 | -10/Mines | Excavation squad dispatched 2257 | -10/Mines | A large section of the Mines collapsed 2311 | -10/Mines | Core integrity fell below 50% 2346 | -10/Mines | Core integrity fell below 20% 2347 | -10/Mines | Lost 5 parts (1p2n2w) 2411 | -10/Mines | Destroyed 7 combat bots 2570 | -10/Mines | Learned 4 Materials zone layouts 2641 | -10/Mines | Met a Derelict who couldn't figure out how to use a Trap Extractor 2779 | -10/Mines | Deemed a non-threat by the Exiles lab entrance 2781 | -10/Mines | Discovered new exit (range 5) 2952 | -10/Mines | Found a damaged Exp. Sensor Array with a note attached 2957 | -10/Mines | Found Prototype Device 2975 | -10/Mines | Build established: Scavenger-Mutant 3167 | -10/Mines | Identified exit to Exiles 3169 | -10/Mines | Entered Exiles 3169 | -10/Exiles | Found Exiles lab abandoned 3508 | -10/Exiles | Discovered new exit (range 10) 3521 | -10/Exiles | Identified exit to Mines 3523 | -10/Exiles | Entered Mines 3553 | -9/Mines | Destroyed by G-34 Mercenary with Small Laser Last Messages --------------- GOAL=ESCAPE 03186_ System corrupted: Matter fused (-8). 03205_ System corrupted: Component data lost. 03273_ 0R&8OSM KCE /O7|IJ9L YS0LP 9OH:|/QB0O#X 03289_ System corrupted: Component data lost. 03306_ System corrupted: Matter fused (-5). 03458_ 05#YYDXWW5YLVJV4FCON> >ZHFRGMLK1 03508_ EXIT=FOUND 03521_ EXIT=IDENTIFIED: MINES LOCATION=MINES GOAL=ESCAPE 03527_ Critical hit (Burn: +37). 03529_ System corrupted: Aluminum Leg rejected. 03529_ Sml. Laser melted. 03529_ G-34 Mercenary destroyed. 03538_ G-47 Trooper heat short circuits Lgt. Nuclear Core. 03539_ Aluminum Leg destroyed. 03541_ Lgt. Ion Engine destroyed. 03547_ Ion Cannon destroyed. Map ----- +----------------------------------------------------+ | ??????????????????????????????????????????? | | ??????????????????????????????????????????? | | ??????????????????????????????????????????? | | ??????????????????????????????????????????? | | ??????????????????????????????????????????? | | ??????????????????????????????????????????? | | ??????????????????????????????????????????? | | ??????????????????????????????????????????? | | ??????????????????????????????????????????? | | ??????????????????????????????????????????? | | ??????????????????????????????????????????? | | ??????????????????????????????????????????? | | ??????????????????????????????????????????? | | ??????????????????????????????????????????? | | ??????????????????????????????????????????? | | ??????????????????????????????????????????? | | ??????????????????????????????????????????? | | ??????????????????????????????????????????? | | ???????????????????????????###?????? ????? | | ??????????????????????????# ###### ?????? | | ????????????????????????## ???????? | | ???????????????????????## ?????????? | | ???????????????????????# * #??????????? | | ???????????????????????# =%= #??????????? | | ??????????????????????## g #???????????? | | ??????????????????????# @ #????????????? | | ????????????????? g #????????????? | | ????????????????####### ##????????????? | | ??????????????????????# ##?????????????? | | ??????????????????????######??????????????? | | ??????????????????????????????????????????? | | ??????????????????????????????????????????? | | ??????????????????????????????????????????? | | | | | | | | | | | | | | | | | | | | | | | | | | | | | | | | | | | +----------------------------------------------------+ Best States ------------- Heat Dissipation 25 Energy Generation 10 Energy Capacity 250 Matter Stores 300 Matter Capacity 300 Sight Range 16 Terrain Scan Range 16 Terrain Scan Density 10 Evasion (%) 40 Recoil Reduction 2 Item Schematics ----------------- None Robot Schematics ------------------ None Fabricated ------------ Nothing Repaired ---------- Lgt. Treads | 35% | -10/Materials Studied --------- None Alien Tech Used ----------------- None Achievements -------------- None Challenges ------------ None Game ------ Seed ZeronetHardlightParser Manual? 0 Play Time 00:22:53 Cumulative 18.1 hours Start 2025.12.30 @ 18:19:32 End 2025.12.30 @ 18:42:09 Sessions 1 Manual Loads 0 Difficulty Rogue Special Mode None Game No. 16 Rogue 16 Adventurer 0 Explorer 0 Win Type - Total 0 Types 0/0/0/0/0/0/0/0/0/0 Lore% 10 Gallery% 18 Achievement% 17 Wizard Run 0 Options --------- Layout 1 ASCII 0 Keyboard 0 Movement Numpad Keybinds 0 Fullscreen 1 Font 24/Smallcaps Map View 50x40 Zoom Use 0% Tactical HUD 1 Map Filters NONE Filters NONE Steam 1 RUN: b61ebe51-8028-4bb0-b169-e5d99fd417a0